{"text_format":"1","workbook":"xlsx","n_sheets":6,"sheets":["skema","Ark1","Ark2","Ark4","Ark5","Ark6"],"not_rendered":{"charts":0,"images":56,"macros":1,"external_links":0,"defined_names":3,"comments":0,"pivot_tables":0},"unopened":[],"bounds":{"document_bytes":16777216,"sheet_cells":100000,"rows_first":2000,"rows_last":500,"rows_between":2000,"halvings":0,"cell_chars":16384,"cell_head_chars":4096},"cells_cut":0,"cells_raw":0,"read":"whole","date_system":"1900"}

{"sheet":"skema","index":0,"n_rows":164,"n_cols":95,"rows_kept":164,"cut":false,"hidden":false,"merged":[[63,16,63,30],[62,0,62,13],[53,0,53,13],[47,0,47,13],[58,16,58,30],[59,16,59,30],[60,16,60,30],[61,16,61,30],[62,16,62,30]]}
[null,null,null,"   De danske honningbi- og humlebilignende Svirrefluer"]
[null,null,null,null,null,null,null,null,null,null,null,null,null,"  Diptera: Syrphidae"]
[null,null,null,null,null,null,null,null,null,null,null,null,null,null,"Bent Haagen Petersen"]
[null,null,"Svirrefluer, der kan ligne honningbier eller humlebier, finder man i adskillige svirrefluslægter. Disse"]
[null,null,"er samlet i denne nøgle. Især humlebi-lignende arter kan være vanskelige at adskille, da de i mange"]
[null,null,"tilfælde efterligner samme humlebiarter. Tilmed kan de de enkelte arter efterligne forskellige humle-"]
[null,null,"biarter. Derfor skal man være opmærksom på, at et billede, som i nøglen skal vise en en art, kan"]
[null,null,"have et helt andet udseende end den flue, man vil bestemme. Man må altså ikke vælge blot at se på"]
[null,null,"billederne. I nøglen finder man de gode kendetegn, især på vingerne, på benene, brystet og på føle-"]
[null,null,"hornene, og der er korte men præcise beskrivelser til alle slægterne/arterne.  "]
[]
[null,null,"I nøglen er medtaget slægten Eristalinus. De to arter i slægten ligner hverken honningbier eller hum-  "]
[null,null,"humlebier, men de er nært beslægtede med Eristalis og kan være vanskelige at adskille. Så derfor. "]
[]
[]
[]
[null,null,null,"  Sådan bruger man bedst nøglen",null,null,null,null,null,null,null,null,null,null,null,null,null,null,null,null,null,"   "]
[null,null,"Nøglen er specielt konstrueret til brug ved bestemmelse af fluer på billeder. Den bruger samme "]
[null,null,"nøglekendetegn som de almindelige nøgler. Blot er man ikke nødt til at gå frem i nøglen i en"]
[null,null,"given rækkefølge sådan, som man skal med almindelige nøgler. Det er en fordel, da der som regel"]
[null,null,"på billeder vil være kendetegn, der ikke er synlige. Her klikker man i helt vilkårlig rækkefølge ved"]
[null,null,"kendetegn, man kan se, altid først ved de mest tydelige. Man skal altså ikke nødvendigvis starte"]
[null,null,"øverst med nøglespørgsmålene. Hver gang man klikker på et kendetegn,vises et billede af kendeteg-"]
[null,null,"net (det øverste af billederne). Klikker man på kendetegn, der ikke passer med nøglens, gør nøglen"]
[null,null,"opmærksom på, at sikker bestemmelse da næppe vil være mulig."]
[null,null,"I takt med, at man klikker kendetegn, kan man i artsoversigten se, at antallet af mulige slægter/arter"]
[null,null,"bliver mindre.  Når der kun er et navn tilbage, skriver nøglen, at fluen nu er bestemt. Derefter"]
[null,null,"klikker man på slægtens nummer i artsoversigten og ser en beskrivelse af slægten/arten. Samtidig"]
[null,null,"hermed viser nøglen billeder (de to nederste)  af arten eller en art i slægten. Er man derefter helt "]
[null,null,"sikker på bestemmelsen, kan man indrapportere observationen. Er man ikke særlig øvet i at be-"]
[null,null,"stemme fluer, bør man sikre sig, at bestemmelsen er rigtig ved først at vise den i Fugle og Naturs "]
[null,null,"Tovinge-forum."]
[]
[]
[null,null,null,null,null,null,null,null,null,null,null,null,null,null,null,null,null,null,null,null,null,null,null,null,null,null,null,null,null,null,null,null,null,null,null,null,null,null,null,null,null,null,null,null,null,null,null,null,null,null,null,null,null,null,null,null,null,null,null,null,null,null,null,null,null,null,null,null,null,null,null,null,null,null,null,null,null,null,null,null,null,null,null,null,null,null,null,null,25]
["  Nøgle til de danske honningbi- og humlebi-lignende Svirrefluer.",null,null,null,null,null,null,null,null,null,null,null,null,null,null,null,null,null,null,null,null,null,null,null,null,null,null,null,null,null,null,null,null,null,null,null,null,null,null,null,null," ",null,null," ",null,null,null,null,null,null,null,null,null,null,null,null,null,null,null,null,null,null,null,null,null,null,null,null,null,null,null,null,null,null,null,2,null,null,null,null,null,null,null,null,null,"Øverste billede viser kendetegn."]
[null,null,null,null,null,null,null,null,null,null,null,null,null,null,null,null,null,null,null,"     Diptera: Syrphidae"]
[null,null,null,null,null,null,null,null,null,null,null,null,null,null,null,null,null,null,null,{"$f":"IF(AQ43=1,VLOOKUP(AQ42,BK45:BL57,2,FALSE),\"      Syrphidae sp.\")","v":"      Syrphidae sp."}]
[]
["Honningbi-lignende, behåring ikke dækkende ?  ",null,null,null,null,null,null,null,null,null,null,null,null,null,null,null,null,null,null,{"$f":"IF(AQ43=1,VLOOKUP(AQ42,BA60:BB72,2,FALSE),\"          Svirreflue\")","v":"          Svirreflue"},null,null,null,null,null,null,null,null,null,null,null,null,null,null,null," ","Afkrydsede felter",null,null,null,null,null,{"$f":"SUM(AR40+AT40+AV40+AY40+BA40+BC40+BE40+BG40)","v":0},{"$f":"IF(AS40=0,0,5)","v":0},{"$f":"SUM(AR41:AS41)","v":0},{"$f":"IF(AU40=0,0,1)","v":0},{"$f":"SUM(AT41:AU41)","v":0},{"$f":"IF(AW40=0,0,1)","v":0},{"$f":"SUM(AV41:AX41)","v":0},null,{"$f":"IF(AZ40=0,0,1)","v":0},{"$f":"SUM(AY41:AZ41)","v":0},{"$f":"IF(BB40=0,0,1)","v":0},{"$f":"SUM(BA41:BB41)","v":0},{"$f":"IF(BD40=0,0,1)","v":0},{"$f":"SUM(BC41:BD41)","v":0},{"$f":"IF(BF40=0,0,1)","v":0},{"$f":"SUM(BE41:BF41)","v":0},{"$f":"IF(BH40=0,0,1)","v":0},{"$f":"SUM(BG41:BJ41)","v":0},null,null,null,null,null,null,null,null,null,null,null,null,null,null,null,null,{"$f":"IF(CA40,\"x\",\" \")","v":" "},null,false]
["Humlebi-lignende, tæt dækkende behåring?    ",null,null,null,null,null,null,null,null,null,null,null,null,null,null,null,null,{"$f":"IF(AQ43=1,\"      Fluen er nu bestemt.  Se ovenfor. \",IF(AQ40=0,\" \",IF(AQ40>AQ42,\" \",\"Se de mulige arter i oversigten nedenfor.\")))","v":" "},null,null,null,null,null,null,null,null,null,null,null,null,null,null,null,null,null,null,null,null,null,null,null,null,null,{"$f":"IF(BY40=\" \",0,1)","v":0},{"$f":"IF(BY41=\" \",0,1)","v":0},{"$f":"IF(BY43=\" \",0,1)","v":0},{"$f":"IF(BY44=\" \",0,1)","v":0},{"$f":"IF(BY46=\" \",0,1)","v":0},{"$f":"IF(BY47=\" \",0,1)","v":0},{"$f":"IF(BY48=\" \",0,1)","v":0},{"$f":"IF(BY50=\" \",0,1)","v":0},{"$f":"IF(BY51=\" \",0,1)","v":0},{"$f":"IF(BY53=\" \",0,1)","v":0},{"$f":"IF(BY54=\" \",0,1)","v":0},{"$f":"IF(BY56=\" \",0,1)","v":0},{"$f":"IF(BY57=\" \",0,1)","v":0},{"$f":"IF(BY59=\" \",0,1)","v":0},{"$f":"IF(BY60=\" \",0,1)","v":0},{"$f":"IF(BY62=\" \",0,1)","v":0},{"$f":"IF(BY63=\" \",0,1)","v":0},{"$f":"IF(BY64=\" \",0,1)","v":0},{"$f":"IF(BY65=\" \",0,1)","v":0},null,null,null,null,null,null,null,null,null,null,null,null,null,null,{"$f":"IF(CA41,\"x\",\" \")","v":" "},null,false]
[null,null,null,null,null,null,null,null,null,null,null,null,null,null,null,null,{"$f":"IF(AQ40>AQ42,\"Du har klikket kendetegn, der ikke passer med nøglen.\",\" \")","v":" "},null,null,null,null,null,null,null,null,null,null,null,null,null,null,null,null," ",null,null,null,null,null,"Maks.",null,null,{"$f":"MAX(AQ45:AQ57)","v":0},null,null,null,null,null,null,null,null,null,null,null,null,null,null,null,null,null,null,null,null,null,null,null,null,null,null,null,null,null,null,null,null,null," ",null,0]
["Længste vingeåre dybt buet nær spidsen?     ",null,null,null,null,null,null,null,null,null,null,null,null," ",null,null,{"$f":"IF(AQ40>AQ42,\"Det gør en bestemmelse tvivlsom.         Prøv igen !\",\" \")","v":" "},null,null,null,null,null,null,null,null,null,null,null,null,null,null,null,null,null,null,null,null,null,"Antal Maks.",null,null,null,{"$f":"COUNTIF(AQ45:AQ57,AQ42)","v":13},null,null,null,null,null,null,null,null,null,null,null,null,null,null,null,null,null," ",null,null,null,null,null,null,null,null,null,null,null,null,null,null,null,{"$f":"IF(CA43,\"x\",\" \")","v":" "},null,false]
["Længste vingeåre uden sådan bue ?                 ",null,null,null,null,null,null,null,null,null,null,null,null,null,null,null,"Vil du læse om en art, så klik ved dens nummer.",null,null,null,null,null,null,null,null,null,null,null,null,null,null,null,null,null,null,null,null,null,null,null,null,null,"sum","Ho","Hu","Bue","Nej","uT","1T","2T","Øpl","Nej","TvS","Nej","B k","B s","B m","B l","Fml","afl","run","kor","sum",null,null,null,null,null,null,null,null,null,null,null,null,null,{"$f":"IF(CA44,\"x\",\" \")","v":" "},null,false]
[null,null,null,null,null,null,null,null,null,null,null,null,null,null,null,null," ",null,1,{"$f":"IF(AQ45=AQ42,AI45,\" \")","v":"Arctophila sp."},null,null,null,null,null,null,null,null,null,null," ",null,null,1,"Arctophila sp.",null,null,null,null,null,null,null,{"$f":"SUM(AR45:BJ45)","v":0},null,{"$f":"IF(BY41=\"x\",5,\" \")","v":" "}," ",{"$f":"IF($BY$44=\"x\",1,\"\")","v":""}," ",{"$f":"IF($BY$47=\"x\",1,\" \")","v":" "}," ",null,{"$f":"IF($BY$51=\"x\",1,\" \")","v":" "}," ",{"$f":"IF($BY$54=\"x\",1,\" \")","v":" "},{"$f":"IF($BY$56=\"x\",1,\" \")","v":" "}," ",{"$f":"IF($BY$59=\"x\",1,\" \")","v":" "},{"$f":"IF($BY$60=\"x\",1,\" \")","v":" "},null,null,{"$f":"IF($BY$64=\"x\",1,\" \")","v":" "},null,{"$f":"SUM(AR45:BJ45)","v":0},"    Arctophila sp.",null,null,null,null,null,null,null,null,null,null,null,null," ",null,0]
["Vinger klare, uden mørkt tværbånd ?",null,null,null,null,null,null,null,null,null,null,null,null,null,null,null,null,null,2,{"$f":"IF(AQ46=AQ42,AI46,\" \")","v":"Brachypalpus laphriformis"},null,null,null,null,null,null,null,null,null,null,null,null,null,2,"Brachypalpus laphriformis",null,null,null,null,null,null,null,{"$f":"SUM(AR46:BJ46)","v":0},{"$f":"IF(BY40=\"x\",5,\" \")","v":" "}," "," ",{"$f":"IF($BY$44=\"x\",1,\"\")","v":""}," ",null,{"$f":"IF($BY$48=\"x\",1,\" \")","v":" "}," ",{"$f":"IF($BY$51=\"x\",1,\" \")","v":" "}," "," ",{"$f":"IF($BY$56=\"x\",1,\" \")","v":" "}," ",null," ",null,null,{"$f":"IF($BY$64=\"x\",1,\" \")","v":" "},null,{"$f":"SUM(AR46:BJ46)","v":0},"Brachypalpus laphriformis",null,null,null,null,null,null,null,null,null,null,null,null,{"$f":"IF(CA46,\"x\",\" \")","v":" "},null,false]
["Vinger med 1 tværbånd eller en plet ?",null,null,null,null,null,null,null,null,null,null,null,null,null,null,null,null,null,3,{"$f":"IF(AQ47=AQ42,AI47,\" \")","v":"Cheilosia illustrata"},null,null,null,null,null,null,null,null,null,null,null,null,null,3,"Cheilosia illustrata",null,null,null,null,null,null,null,0,null,{"$f":"IF(BY41=\"x\",5,\" \")","v":" "}," ",{"$f":"IF($BY$44=\"x\",1,\"\")","v":""},null,{"$f":"IF($BY$47=\"x\",1,\"\")","v":""}," "," ",{"$f":"IF($BY$51=\"x\",1,\" \")","v":" "}," "," "," ",{"$f":"IF($BY$57=\"x\",1,\" \")","v":" "},{"$f":"IF($BY$59=\"x\",1,\" \")","v":" "}," "," ",null,{"$f":"IF($BY$64=\"x\",1,\" \")","v":" "},null,{"$f":"SUM(AR47:BJ47)","v":0},"Cheilosia illustrata",null,null,null,null,null,null,null,null,null,null,null,null,{"$f":"IF(CA47,\"x\",\" \")","v":" "},null,false]
["Vinger med 2 tværbånd, (1 ved vingespidsen) ?",null,null,null,null,null,null,null,null,null,null,null,null,null,null,null,null,null,4,{"$f":"IF(AQ48=AQ42,AI48,\" \")","v":"Criorhina sp."},null,null,null,null,null,null,null,null,null,null,null,null,null,4,"Criorhina sp.",null,null,null,null,null,null,null,0,{"$f":"IF(BY40=\"x\",5,\" \")","v":" "},{"$f":"IF(BY41=\"x\",5,\" \")","v":" "}," ",{"$f":"IF($BY$44=\"x\",1,\"\")","v":""},{"$f":"IF($BY$46=\"x\",1,\"\")","v":""},{"$f":"IF($BY$47=\"x\",1,\"\")","v":""},{"$f":"IF($BY$48=\"x\",1,\" \")","v":" "}," ",{"$f":"IF($BY$51=\"x\",1,\" \")","v":" "}," "," "," ",{"$f":"IF($BY$57=\"x\",1,\" \")","v":" "},{"$f":"IF($BY$59=\"x\",1,\" \")","v":" "}," "," ",null,null,{"$f":"IF($BY$65=\"x\",1,\" \")","v":" "},{"$f":"SUM(AR48:BJ48)","v":0},"     Criorhina sp.",null,null,null,null,null,null,null,null,null,null,null,null,{"$f":"IF(CA48,\"x\",\" \")","v":" "},null,false]
[null,null,null,null,null,null,null,null,null,null,null,null,null,null,null,null,null,null,5,{"$f":"IF(AQ49=AQ42,AI49, \" \")","v":"Eriozona syrphoides"},null,null,null,null,null,null,null,null,null,null,null,null,null,5,"Eriozona syrphoides",null,null,null,null,null,null,null,0,null,{"$f":"IF(BY41=\"x\",5,\" \")","v":" "}," ",{"$f":"IF($BY$44=\"x\",1,\"\")","v":""},null,{"$f":"IF($BY$47=\"x\",1,\"\")","v":""}," "," ",{"$f":"IF($BY$51=\"x\",1,\" \")","v":" "}," "," "," ",{"$f":"IF($BY$57=\"x\",1,\" \")","v":" "}," "," "," ",{"$f":"IF($BY$63=\"x\",1,\" \")","v":" "},null,null,{"$f":"SUM(AR49:BJ49)","v":0},"Eriozona syrphoides",null,null,null,null,null,null,null,null,null,null,null,null," ",null,0]
["Øjne tydeligt plettede ?",null,null,null,null,null,null,null,null,null,null,null,null,null,null,null,null,null,6,{"$f":"IF(AQ50=AQ42,AI50,\" \")","v":"Eristalinus sp."},null,null,null,null,null,null,null,null,null,null,null,null,null,6,"Eristalinus sp.",null,null,null,null,null,null,null,0,{"$f":"IF(BY40=\"x\",5,\" \")","v":" "}," ",{"$f":"IF(BY43=\"x\",1,\"\")","v":""},null,{"$f":"IF($BY$46=\"x\",1,\"\")","v":""}," "," ",{"$f":"IF(BY50=\"x\",1,\" \")","v":" "},null," "," "," ",{"$f":"IF($BY$57=\"x\",1,\" \")","v":" "},{"$f":"IF($BY$59=\"x\",1,\" \")","v":" "}," "," ",null,{"$f":"IF($BY$64=\"x\",1,\" \")","v":" "},null,0,"    Eristalinus sp.",null,null,null,null,null,null,null,null,null,null,null,null,{"$f":"IF(CA50,\"x\",\" \")","v":" "},null,false]
["Øjnene ikke plettede ?",null,null,null,null,null,null,null,null,null,null,null,null,null,null,null,null,null,7,{"$f":"IF(AQ51=AQ42,AI51,\" \")","v":"Eristalis sp."},null,null,null,null,null,null,null,null,null,null,null,null,null,7,"Eristalis sp.",null,null,null,null,null,null,null,0,{"$f":"IF(BY40=\"x\",5,\" \")","v":" "},{"$f":"IF(BY41=\"x\",5,\" \")","v":" "},{"$f":"IF(BY43=\"x\",1,\"\")","v":""},null,{"$f":"IF($BY$46=\"x\",1,\"\")","v":""},{"$f":"IF($BY$47=\"x\",1,\"\")","v":""}," "," ",{"$f":"IF($BY$51=\"x\",1,\" \")","v":" "}," "," "," ",{"$f":"IF($BY$57=\"x\",1,\" \")","v":" "},null," "," ",null,{"$f":"IF($BY$64=\"x\",1,\" \")","v":" "},null,0,"      Eristalis sp.",null,null,null,null,null,null,null,null,null,null,null,null,{"$f":"IF(CA51,\"x\",\" \")","v":" "},null,false]
[null,null,null,null,null,null,null,null,null,null,null,null,null,null,null,null,null,null,8,{"$f":"IF(AQ52=AQ42,AI52,\" \")","v":"Mallota cimbiciformis"},null,null,null,null,null,null,null,null,null,null,null,null,null,8,"Mallota cimbiciformis",null,null,null,null,null,null,null,0,{"$f":"IF(BY40=\"x\",5,\" \")","v":" "},null,{"$f":"IF(BY43=\"x\",1,\"\")","v":""}," ",null,{"$f":"IF($BY$47=\"x\",1,\"\")","v":""}," "," "," "," "," ",{"$f":"IF($BY$56=\"x\",1,\" \")","v":" "}," "," "," "," ",null,{"$f":"IF($BY$64=\"x\",1,\" \")","v":" "},{"$f":"IF($BY$65=\"x\",1,\" \")","v":" "},0,"Mallota cimbiciformis",null,null,null,null,null,null,null,null,null,null,null,null," ",null,0]
["Bryst på oversiden med grå tværstriber ?",null,null,null,null,null,null,null,null,null,null,null,null,null,null,null,null,null,9,{"$f":"IF(AQ53=AQ42,AI53,\" \")","v":"Merodon equestris"},null,null,null,null,null,null,null,null,null,null,null,null,null,9,"Merodon equestris",null,null,null,null,null,null,null,0,{"$f":"IF(BY40=\"x\",5,\" \")","v":" "},{"$f":"IF(BY41=\"x\",5,\" \")","v":" "},{"$f":"IF(BY43=\"x\",1,\"\")","v":""}," ",{"$f":"IF($BY$46=\"x\",1,\"\")","v":""}," "," "," "," "," "," ",{"$f":"IF($BY$56=\"x\",1,\" \")","v":" "}," "," ",null," ",{"$f":"IF($BY$63=\"x\",1,\" \")","v":" "},null,null,0," Merodon equestris",null,null,null,null,null,null,null,null,null,null,null,null,{"$f":"IF(CA53,\"x\",\" \")","v":" "},null,false]
["Bryst uden tværstriber; måske på langs ? ",null,null,null,null,null,null,null,null,null,null,null,null,null,null,null,null,null,10,{"$f":"IF(AQ54=AQ42,AI54,\" \")","v":"Microdon sp."},null,null,null,null,null,null,null,null,null,null,null,null,null,10,"Microdon sp.",null,null,null,null,null,null,null,0,{"$f":"IF(BY40=\"x\",5,\" \")","v":" "},null,null,{"$f":"IF(BY44=\"x\",1,\"\")","v":""},{"$f":"IF($BY$46=\"x\",1,\"\")","v":""}," "," "," "," "," "," "," ",{"$f":"IF($BY$57=\"x\",1,\" \")","v":" "},null,{"$f":"IF($BY$60=\"x\",1,\" \")","v":" "},{"$f":"IF(BY62=\"x\",1,\" \")","v":" "},null,null,null,0,"      Microdon sp.",null,null,null,null,null,null,null,null,null,null,null,null,{"$f":"IF(CA54,\"x\",\" \")","v":" "},null,false]
[null,null,null,null,null,null,null,null,null,null,null,null,null,null,null,null,null,null,11,{"$f":"IF(AQ55=AQ42,AI55,\" \")","v":"Myathropa florea"},null,null,null,null,null,null,null,null,null,null,null,null,null,11,"Myathropa florea",null,null,null,null,null,null,null,{"$f":"SUM(AR55:BJ55)","v":0},{"$f":"IF(BY40=\"x\",5,\" \")","v":" "},null,{"$f":"IF(BY43=\"x\",1,\"\")","v":""}," ",{"$f":"IF($BY$46=\"x\",1,\"\")","v":""}," "," "," "," ",{"$f":"IF(BY53=\"x\",1,\" \")","v":" "}," "," ",{"$f":"IF($BY$57=\"x\",1,\" \")","v":" "},null," "," ",null,{"$f":"IF($BY$64=\"x\",1,\" \")","v":" "},null,0,"     Myathropa florea",null,null,null,null,null,null,null,null,null,null,null,null," ",null,0]
["Baglår kraftige, fortykkede ?",null,null,null,null,null,null,null,null,null,null,null,null,null,null,null,null,null,12,{"$f":"IF(AQ56=AQ42,AI56,\" \")","v":"Pocota personata"},null,null,null,null,null,null,null,null,null,null,null,null,null,12,"Pocota personata",null,null,null,null,null,null,null,{"$f":"SUM(AR56:BJ56)","v":0},null,{"$f":"IF(BY41=\"x\",5,\" \")","v":" "}," ",{"$f":"IF(BY44=\"x\",1,\"\")","v":""},null,{"$f":"IF($BY$47=\"x\",1,\"\")","v":""}," "," "," "," ",{"$f":"IF($BY$54=\"x\",1,\" \")","v":" "}," ",{"$f":"IF($BY$57=\"x\",1,\" \")","v":" "},null," "," ",null,null,{"$f":"IF($BY$65=\"x\",1,\" \")","v":" "},0,"   Pocota personata",null,null,null,null,null,null,null,null,null,null,null,null,{"$f":"IF(CA56,\"x\",\" \")","v":" "},null,false]
["Baglår ikke eller kun lidt fortykkede ?",null,null,null,null,null,null,null,null,null,null,null,null,null,null,null,null,null,13,{"$f":"IF(AQ57=AQ42,AI57,\" \")","v":"Volucella bombylans"},null,null,null,null,null,null,null,null,null,null,null,null,null,13,"Volucella bombylans",null,null,null,null,null,null,null,{"$f":"SUM(AR57:BJ57)","v":0},null,{"$f":"IF(BY41=\"x\",5,\" \")","v":" "},null,{"$f":"IF(BY44=\"x\",1,\"\")","v":""},null,{"$f":"IF($BY$47=\"x\",1,\"\")","v":""},{"$f":"IF($BY$48=\"x\",1,\" \")","v":" "}," "," "," ",{"$f":"IF($BY$54=\"x\",1,\" \")","v":" "}," ",{"$f":"IF($BY$57=\"x\",1,\" \")","v":" "}," ",null,null,{"$f":"IF($BY$63=\"x\",1,\" \")","v":" "},null,null,0,"Volucella bombylans",null,null,null,null,null,null,null,null,null,null,null,null,{"$f":"IF(CA57,\"x\",\" \")","v":" "},null,false]
[null,null,null,null,null,null,null,null,null,null,null,null,null," ",null,null,{"$f":"+CA68","v":1},{"$f":"VLOOKUP(Q58,AH45:AI57,2)","v":"Arctophila sp."},null,null,null,null,null,null,null,null,null,null,null,null,null,null,null,null,null,null,null,null,null,null,null,null,null,null,null,null,null,null,null,null,null,null,null,null,null,null,null,null,null,null,null,null,null,null,null,null,null,null,null,null,null,null,null,null,null,null," ",null,0]
["Ben/fødder sorte eller næsten helt sorte ?",null,null,null,null,null,null,null,null,null,null,null,null,null,null,null,{"$f":"VLOOKUP(Q58,AH60:AI72,2)","v":"To arter. Arctophila bombiformis: Stor. Bryst fortil gul-"},null,null,null,null,null,null,null,null,null,null,null,null,null,null,null,null,null,null,null,null,null,null,null,null,null,null,null,null,null,null,null,null,null,null,null,null,null,null,null,null,null,null,null,null,null,null,null,null,null,null,null,null,null,null,null,null,null,null,null,{"$f":"IF(CA59,\"x\",\" \")","v":" "},null,false]
["Sorte, men også med gult eller brunligt ?",null,null,null,null,null,null,null,null,null,null,null,null,null,null,null,{"$f":"VLOOKUP(Q58,AH82:AI94,2)","v":"ligt, bagtil sort. Bagkrop inderst inde smalt gul, derefter"},null,null,null,null,null,null,null,null,null,null,null,null,null,null,null,null,1,"To arter. Arctophila bombiformis: Stor. Bryst fortil gul-",null,null,null,null,null,null,null,null,null,null,null,null,null,null,null,null,null,{"$f":"SUM(AR45:BJ45)","v":0},"    Bjørnesvirreflue",null,null,null,null,null,null,null,null,null,null,null,null,null,null,null,null,null,null,null,null,null,null,{"$f":"IF(CA60,\"x\",\" \")","v":" "},null,false]
[null,null,null,null,null,null,null,null,null,null,null,null,null,null,null,null,{"$f":"VLOOKUP(Q58,AH96:AI108,2)","v":"hvid, midt på bredt sort, og bagtil hvid. Ben næsten helt"},null,null,null,null,null,null,null,null,null,null,null,null,null,null,null,null,2,"Aflang slank art. Brystet brunsort. Bagkroppens basis",null,null,null,null,null,null,null,null,null,null,null,null,null,null,null,null,null,0," Brun Træsmuldsvirreflue",null,null,null,null,null,null,null,null,null,null,null,null,null,null,null,null,null,null,null,null,null,null," ",null,0]
["Følehorn meget længere end hovedet ?",null,null,null,null,null,null,null,null,null,null,null,null," ",null,null,{"$f":"VLOOKUP(Q58,AH110:AI122,2)","v":"sorte. Hannens lår tykke.Vinger med mørkt bånd. Sj."},null,null,null,null,null,null,null,null,null,null,null,null,null,null,null,null,3," Eneste humlebi-lignende Cheilosia. Brystet sort. Bag-",null,null,null,null,null,null,null,null,null,null,null,null,null,null,null,null,null,0,"Broget Urtesvirreflue",null,null,null,null,null,null,null,null,null,null,null,null,null,null,null,null,null,null,null,null,null,null,{"$f":"IF(CA62,\"x\",\" \")","v":" "},null,false]
["3. følehornsled aflangt, evt afsmalnet udefter ?",null,null,null,null,null,null,null,null,null,null,null,null,null,null,null,{"$f":"VLOOKUP(Q58,AH124:AI136,2)","v":"Arctophila superbiens: Brystet orangefarvet behåret, "},null,null,null,null,null,null,null,null,null,null,null,null,null,null,null,null,4,"Ansigtet gult, svagt indadbuet og forlænget nedefter.",null,null,null,null,null,null,null,null,null,null,null,null,null,null,null,null,null,0,"      Pels-Svirreflue",null,null,null,null,null,null,null,null,null,null,null,null,null,null,null,null,null,null,null,null,null,null,{"$f":"IF(CA63,\"x\",\" \")","v":" "},null,false]
["3. følehornsled nogenlunde rundt ?",null,null,null,null,null,null,null,null,null,null,null,null,null,null,null,{"$f":"VLOOKUP(Q58,AH138:AI150,2)","v":"bagkroppen hvidligt behåret.  Ben sorte. Hannens baglår"},null,null,null,null,null,null,null,null,null,null,null,null,null,null,null,null,5,"De ofte lyse ben, hvor fødderne er gule og for- og",null,null,null,null,null,null,null,null,null,null,null,null,null,null,null,null,null,0,"     Bjerg-Svirreflue",null,null,null,null,null,null,null,null,null,null,null,null,null,null,null,null,null,null,null,null,null,null,{"$f":"IF(CA64,\"x\",\" \")","v":" "},null,false]
["3. følehornsled kortere end bredt ?",null,null,null,null,null,null,null,null,null,null,null,null,null,null,null,{"$f":"VLOOKUP(Q58,AH152:AI164,2)","v":"lidt fortykkede. Vinger med mørkt bånd. Ikke alm.."},null,null,null,null,null,null,null,null,null,null,null,null,null,null,null,null,6,"To mørke arter med plettede øjne. Vingerne er klare,",null,null,null,null,null,null,null,null,null,null,null,null,null,null,null,null,null,0,"        Dyndflue",null,null,null,null,null,null,null,null,null,null,null,null,null,null,null,null,null,null,null,null,null,null,{"$f":"IF(CA65,\"x\",\" \")","v":" "},null,false]
[null,null,null,null,null,null,null,null,null,null,null,null,null,null," ",null,null,null,null,null,null,null,"Bi-lignende svirrefluer m. billeder 1",null,null,null,null,null,null,null,null,null,null,7,"14 danske arter, hvor flere ligner hinanden. Vingeåre",null,null,null,null,null,null,null,null,null,null,null,null,null,null,null,null,null,0,"         Dyndflue",null,null,null,null,null,null,null,null,null,null,null,null,null,null,null,null,null,null,null,null,null,null,null,null,0]
[null,null,null,null,null,null,null,null,null,null,null,null,null,null,null,null,null,null,null,null,null,null,null,null,null,null,null,null,null,null,null,null,null,8,"Stor flue, 13-17 mm. Brystet gulligt behåret. Bagkrop-",null,null,null,null,null,null,null,null,null,null,null,null,null,null,null,null,null,0,"       Uld-Svirreflue",null,null,null,null,null,null,null,null,null,null,null,null,null,null,null,null,null,null,null,null,null,null,null,null,0]
[null,null,null,null,null,null,null,null,null,null,null,null,null,null,null,null,null,null,null,null,null,null,null,null,null,null,null,null,null,null,null,null,null,9,"Vingerne er klare uden mørkt tværbånd og med en dyb ",null,null,null,null,null,null,null,null,null,null,null,null,null,null,null,null,null,0,"     Stor Narcisflue",null,null,null,null,null,null,null,null,null,null,null,null,null,null,null,null,null,null,null,null,null,null,null,null,1]
[null,null,null,null,null,null,null,null,null,null,null,null,null,null,null,null,null,null,null,null,null,null,null,null,null,null,null,null,null,null,null,null,null,10,"Ret små gråsorte arter, der er let kendelige på følehor-",null,null,null,null,null,null,null,null,null,null,null,null,null,null,null,null,null,0,"     Myresvirreflue",null,null,null,null,null,null,null,null,null,null,null,null,null,null,null,null,null,null,null,null,null,null,null,null,0]
[null,null,null,null,null,null,null,null,null,null,null,null,null,null,null,null,null,null,null,null,null,null,null,null,null,null,null,null,null,null,null,null,null,11,"Let kendelig på brystets grå tværstriber, der danner en",null,null,null,null,null,null,null,null,null,null,null,null,null,null,null,null,null,0,"Dødningehoved-Svirreflue"]
[null,null,null,null,null,null,null,null,null,null,null,null,null,null,null,null,null,null,null,null,null,null,null,null,null,null,null,null,null,null,null,null,null,12,"Karakteristisk for denne art er dens lille hoved. Krop-",null,null,null,null,null,null,null,null,null,null,null,null,null,null,null,null,null,0,"   Jordhumle-Svirreflue"]
[null,null,null,null,null,null,null,null,null,null,null,null,null,null,null,null,null,null,null,null,null,null,null,null,null,null,null,null,null,null,null,null,null,13,"3. Følehornsled aflangt med følehornsbørsten meget",null,null,null,null,null,null,null,null,null,null,null,null,null,null,null,null,null,0,"Foranderlig Humlesvirreflue"]
[]
[]
[]
[]
[null,null,"æ"]
[]
[]
[]
[null,null,null,null,null,null,null,null,null,null,null,null,null,null,null,null,null,null,null,null,null,null,null,null,null,null,null,null,null,null,null,null,null,null,null,null,null,null,null,null,null,null,null,null,null,null,null,null,null,null,null,null," "]
[null,null,null,null,null,null,null,null,null,null,null,null,null,null,null,null,null,null,null,null,null,null,null," ",null,null,null,null,null,null,null,null,null,1,"ligt, bagtil sort. Bagkrop inderst inde smalt gul, derefter"]
[null,null,null,null,null,null,null,null,null,null,null,null,null,null,null,null,null,null,null,null,null,null,null,null,null,null,null,null,null,null,null,null,null,2,"rødgul. Ingen bue på vingeåre ved spidsen. Vingerne"]
[null,null,null,null,null,null,null,null,null,null,null,null,null,null,null,null,null,null,null,null,null,null,null,null,null,null,null,null,null,null,null,null,null,3,"kroppen inderst med grå/gul behåring, 3. Bagkropsled"]
[null,null,null,null,null,null,null,null,null,null,null,null,null,null,null,null,null,null,null,null,null,null,null,null,null,null,null,null,null,null,null,null,null,4,"Følehorn meget korte, højere end lange. 3 arter med"]
[null,null,null,null,null,null,null,null,null,null,null,null,null,null,null,null,null,null,null,null,null,null,null,null,null,null,null,null,null,null,null,null,null,5,"midtskinnebenene er gule, kendetegner E. syrphoides. "]
[null,null,null,null,null,null,null,null,null,null,null,null,null,null,null,null,null,null,null,null,null,null,null,null,null,null,null,null,null,null,null,null,null,6,"uden mørkt tværbånd. Den lille E. sepulchralis har grå"]
[null,null,null,null,null,null,null,null,null,null,null,null,null,null,null,null,null,null,null,null,null,null,null,null,null,null,null,null,null,null,null,null,null,7,"nær vingespidsen med dyb bue. Vingerne uden eller"]
[null,null,null,null,null,null,null,null,null,null,null,null,null,null,null,null,null,null,null,null,null,null,null,null,null,null,null,null,null,null,null,null,null,8,"pen mørk. Ben mest sorte, baglår kraftigt fortykkede,"]
[null,null,null,null,null,null,null,null,null,null,null,null,null,null,null,null,null,null,null,null,null,null,null,null,null,null,null,null,null,null,null,null,null,9,"bue på den længste vingeåre ved spidsen. Derved adskil-"]
[null,null,null,null,null,null,null,null,null,null,null,null,null,null,null,null,null,null,null,null,null,null,null,null,null,null,null,null,null,null,null,null,null,10,"nene, som er ca. dobbelt så lange som hovedet set "]
[null,null,null,null,null,null,null,null,null,null,null,null,null,null,null,null,null,null,null,null,null,null,null,null,null,null,null,null,null,null,null,null,null,11,"dødningehoved-lignende tegning. Bagkroppen har sto- "]
[null,null,null,null,null,null,null,null,null,null,null,null,null,null,null,null,null,null,null,null,null,null,null,null,null,null,null,null,null,null,null,null,null,12,"pens behåring er altid farvet som Jordhumlens. Brystet"]
[null,null,null,null,null,null,null,null,null,null,null,null,null,null,null,null,null,null,null,null,null,null,null,null,null,null,null,null,null,null,null,null,null,13,"langt behåret. Vingerne har et tydeligt mørkt bånd"]
[]
[null,null,null,null,null,null,null,null,null,null,null,null,null,null,null,null,null,null,null,null,null,null,null,null,null,null,null,null,null,null,null,null,null,1,"hvid, midt på bredt sort, og bagtil hvid. Ben næsten helt"]
[null,null,null,null,null,null,null,null,null,null,null,null,null,null,null,null,null,null,null,null,null,null,null,null,null,null,null,null,null,null,null,null,null,2,"har to tværbånd, svaegste ved vingespidsen.  Baglårene"]
[null,null,null,null,null,null,null,null,null,null,null,null,null,null,null,null,null,null,null,null,null,null,null,null,null,null,null,null,null,null,null,null,null,3,"med sort tværbånd. Bagkrpsspidsen orange. Vingerne"]
[null,null,null,null,null,null,null,null,null,null,null,null,null,null,null,null,null,null,null,null,null,null,null,null,null,null,null,null,null,null,null,null,null,4,"mørke tværbånd på vingerne; de yderste ikke tydelige. "]
[null,null,null,null,null,null,null,null,null,null,null,null,null,null,null,null,null,null,null,null,null,null,null,null,null,null,null,null,null,null,null,null,null,5,"Ansigtet er gult. Vingepletten er gulbrun, men den er "]
[null,null,null,null,null,null,null,null,null,null,null,null,null,null,null,null,null,null,null,null,null,null,null,null,null,null,null,null,null,null,null,null,null,6,"længdestriber på brystet. Bagkroppen er meget kort og "]
[null,null,null,null,null,null,null,null,null,null,null,null,null,null,null,null,null,null,null,null,null,null,null,null,null,null,null,null,null,null,null,null,null,7,"med kun 1 mørkt vingebånd. Benene er både sorte og"]
[null,null,null,null,null,null,null,null,null,null,null,null,null,null,null,null,null,null,null,null,null,null,null,null,null,null,null,null,null,null,null,null,null,8,"især hos hannen. Vingerne har 1 mørkt tværbånd og dyb"]
[null,null,null,null,null,null,null,null,null,null,null,null,null,null,null,null,null,null,null,null,null,null,null,null,null,null,null,null,null,null,null,null,null,9,"les den  let fra Volucella bombylans. Flere farvevari-"]
[null,null,null,null,null,null,null,null,null,null,null,null,null,null,null,null,null,null,null,null,null,null,null,null,null,null,null,null,null,null,null,null,null,10,"fra oven.  Vingerne klare. Ved vingespidsen er rand-"]
[null,null,null,null,null,null,null,null,null,null,null,null,null,null,null,null,null,null,null,null,null,null,null,null,null,null,null,null,null,null,null,null,null,11,"re gullige pletter. Vingerne har en dyb bue på vingeåre"]
[null,null,null,null,null,null,null,null,null,null,null,null,null,null,null,null,null,null,null,null,null,null,null,null,null,null,null,null,null,null,null,null,null,12,"fortil gult, bagtil sort. Bagkroppen sort med gult tvær-"]
[null,null,null,null,null,null,null,null,null,null,null,null,null,null,null,null,null,null,null,null,null,null,null,null,null,null,null,null,null,null,null,null,null,13,"midt på og et svagere ved vingespidsen. Ansigtet er "]
[null,null,null,null,null,null,null,null,null,null,null,null,null,null,null,null,null,null,null,null,null,null,null,null,null,null,null,null,null,null,null,null,null,null,null,null,null,null,null,null,null,null,null,null,null,null,null,null,null,null,null,null,null,null,null,null,null,null,null,null,null,null,null,null,null,null,null,null,null,null,null,null,null,null,null,null,null,null,null,null,null,null,null,null,null,null,null,null,null,{"$f":"$Q$58","v":1},{"$f":"VLOOKUP(CL109,'Ark2'!B5:C17,2,FALSE)","v":"Ark2!A15"},null,null,{"$f":"$Q$58","v":1},{"$f":"VLOOKUP(CP109,'Ark2'!G5:H17,2,FALSE)","v":"Ark2!F15"}]
[null,null,null,null,null,null,null,null,null,null,null,null,null,null,null,null,null,null,null,null,null,null,null,null,null,null,null,null,null,null,null,null,4,1,"sorte. Hannens lår tykke.Vinger med mørkt bånd. Sj."]
[null,null,null,null,null,null,null,null,null,null,null,null,null,null,null,null,null,null,null,null,null,null,null,null,null,null,null,null,null,null,null,null,null,2,"kraftigt fortykkede, især hos hannen. Arten er sjælden."]
[null,null,null,null,null,null,null,null,null,null,null,null,null,null,null,null,null,null,null,null,null,null,null,null,null,null,null,null,null,null,null,null,null,3,"gullige med stor brungul plet på midten. Vinger uden"]
[null,null,null,null,null,null,null,null,null,null,null,null,null,null,null,null,null,null,null,null,null,null,null,null,null,null,null,null,null,null,null,null,null,4,"C.  Berberina ligner humlebi, C. asilica og C. floccosa"]
[null,null,null,null,null,null,null,null,null,null,null,null,null,null,null,null,null,null,null,null,null,null,null,null,null,null,null,null,null,null,null,null,null,5,"ikke altid tydelig. Brystet sort med gule skuldre. Hvid-"]
[null,null,null,null,null,null,null,null,null,null,null,null,null,null,null,null,null,null,null,null,null,null,null,null,null,null,null,null,null,null,null,null,null,6,"tilspidset  E. aeneus kan have utydelige striber på bry-"]
[null,null,null,null,null,null,null,null,null,null,null,null,null,null,null,null,null,null,null,null,null,null,null,null,null,null,null,null,null,null,null,null,null,7,"gule. Bagkroppen med eller uden gule pletter. Flere"]
[null,null,null,null,null,null,null,null,null,null,null,null,null,null,null,null,null,null,null,null,null,null,null,null,null,null,null,null,null,null,null,null,null,8,"bue på vingeåre nær spidsen. En meget sjælden art,"]
[null,null,null,null,null,null,null,null,null,null,null,null,null,null,null,null,null,null,null,null,null,null,null,null,null,null,null,null,null,null,null,null,null,9,"anter med overgangsformer forekommer. Baglårene "]
[null,null,null,null,null,null,null,null,null,null,null,null,null,null,null,null,null,null,null,null,null,null,null,null,null,null,null,null,null,null,null,null,null,10,"årene buet på karakteristisk måde.  Især bagkroppen har "]
[null,null,null,null,null,null,null,null,null,null,null,null,null,null,null,null,null,null,null,null,null,null,null,null,null,null,null,null,null,null,null,null,null,11,"nær spidsen. Vingerne er klare uden mørke tværbånd."]
[null,null,null,null,null,null,null,null,null,null,null,null,null,null,null,null,null,null,null,null,null,null,null,null,null,null,null,null,null,null,null,null,null,12,"bånd. Bagspidsen hvid. Vingerne med 1 mørkt tvær-"]
[null,null,null,null,null,null,null,null,null,null,null,null,null,null,null,null,null,null,null,null,null,null,null,null,null,null,null,null,null,null,null,null,null,13,"gult. Ben slanke, næste sorte. Bagkroppen  tæt behåret."]
[null,null,null,null,null,null,null,null,null,null,null,null,null,null,null,null,null,null,null,null,null,null,null,null,null,null,null,null,null,null,null,null,null,null,null,null,null,null,null,null,null,null,null,null,null,null,null,null,null,null,null,null,null,null,null,null,null,null,null,null,null,null,null,null,null,null,null,null,null,null,null,null,null,null,null,null,null,null,null,null,null,null,null,null,null,null,null,null,null,null,null,null,null,{"$f":"$BY$36","v":2},{"$f":"VLOOKUP(CP123,'Ark2'!L5:M23,2,FALSE)","v":"Ark2!K6"}]
[null,null,null,null,null,null,null,null,null,null,null,null,null,null,null,null,null,null,null,null,null,null,null,null,null,null,null,null,null,null,null,null,5,1,"Arctophila superbiens: Brystet orangefarvet behåret, "]
[null,null,null,null,null,null,null,null,null,null,null,null,null,null,null,null,null,null,null,null,null,null,null,null,null,null,null,null,null,null,null,null,null,2,"."]
[null,null,null,null,null,null,null,null,null,null,null,null,null,null,null,null,null,null,null,null,null,null,null,null,null,null,null,null,null,null,null,null,null,3,"bue på længste åre ved  spidsen. Ben slanke, overve-"]
[null,null,null,null,null,null,null,null,null,null,null,null,null,null,null,null,null,null,null,null,null,null,null,null,null,null,null,null,null,null,null,null,null,4,"honningbier. Begge har lys hårdusk ved bagkropsbasis."]
[null,null,null,null,null,null,null,null,null,null,null,null,null,null,null,null,null,null,null,null,null,null,null,null,null,null,null,null,null,null,null,null,null,5,"ligt bagtil. Bagkroppen er sort med spidsen mere"]
[null,null,null,null,null,null,null,null,null,null,null,null,null,null,null,null,null,null,null,null,null,null,null,null,null,null,null,null,null,null,null,null,null,6,"stet.  Dens bagkrop er aflang med parallelle sider. Beg-"]
[null,null,null,null,null,null,null,null,null,null,null,null,null,null,null,null,null,null,null,null,null,null,null,null,null,null,null,null,null,null,null,null,null,7,"arter er almindelige. Der henvises til særlig digital nøg-"]
[null,null,null,null,null,null,null,null,null,null,null,null,null,null,null,null,null,null,null,null,null,null,null,null,null,null,null,null,null,null,null,null,null,8,"fundet nogle få steder i de østlige egne, især i Nord-."]
[null,null,null,null,null,null,null,null,null,null,null,null,null,null,null,null,null,null,null,null,null,null,null,null,null,null,null,null,null,null,null,null,null,9,"er kraftige og har på undersiden en tydelig tand  ved "]
[null,null,null,null,null,null,null,null,null,null,null,null,null,null,null,null,null,null,null,null,null,null,null,null,null,null,null,null,null,null,null,null,null,10,"grålige tegninger. Arterne er sjældne."]
[null,null,null,null,null,null,null,null,null,null,null,null,null,null,null,null,null,null,null,null,null,null,null,null,null,null,null,null,null,null,null,null,null,11,"Ben slanke, farvede som hos Eristalis. Almindelig art."]
[null,null,null,null,null,null,null,null,null,null,null,null,null,null,null,null,null,null,null,null,null,null,null,null,null,null,null,null,null,null,null,null,null,12,"bånd. Meget sjælden. Kun fundet i de østlgste egne."]
[null,null,null,null,null,null,null,null,null,null,null,null,null,null,null,null,null,null,null,null,null,null,null,null,null,null,null,null,null,null,null,null,null,13,"Flere farvevarianter forekommer. Ofte sort med rød "]
[]
[null,null,null,null,null,null,null,null,null,null,null,null,null,null,null,null,null,null,null,null,null,null,null,null,null,null,null,null,null,null,null,null,6,1,"bagkroppen hvidligt behåret.  Ben sorte. Hannens baglår"]
[null,null,null,null,null,null,null,null,null,null,null,null,null,null,null,null,null,null,null,null,null,null,null,null,null,null,null,null,null,null,null,null,null,2,"."]
[null,null,null,null,null,null,null,null,null,null,null,null,null,null,null,null,null,null,null,null,null,null,null,null,null,null,null,null,null,null,null,null,null,3,"jende sorte. Sjælden."]
[null,null,null,null,null,null,null,null,null,null,null,null,null,null,null,null,null,null,null,null,null,null,null,null,null,null,null,null,null,null,null,null,null,4,"C. ascilca har grå tværstriber på den mørke bagkrop."]
[null,null,null,null,null,null,null,null,null,null,null,null,null,null,null,null,null,null,null,null,null,null,null,null,null,null,null,null,null,null,null,null,null,5,"eller mindre orangefarvet. Sjælden. Den lignende Cheilo-"]
[null,null,null,null,null,null,null,null,null,null,null,null,null,null,null,null,null,null,null,null,null,null,null,null,null,null,null,null,null,null,null,null,null,6,"ge arter har dybe bue på længste vingeåre ved spidsen."]
[null,null,null,null,null,null,null,null,null,null,null,null,null,null,null,null,null,null,null,null,null,null,null,null,null,null,null,null,null,null,null,null,null,7,"le til bestemmelse af arterne i slægten."]
[null,null,null,null,null,null,null,null,null,null,null,null,null,null,null,null,null,null,null,null,null,null,null,null,null,null,null,null,null,null,null,null,null,8,"sjælland"]
[null,null,null,null,null,null,null,null,null,null,null,null,null,null,null,null,null,null,null,null,null,null,null,null,null,null,null,null,null,null,null,null,null,9,"spidsen. Benene er helt sorte. Almindelig og kendt"]
[null,null,null,null,null,null,null,null,null,null,null,null,null,null,null,null,null,null,null,null,null,null,null,null,null,null,null,null,null,null,null,null,null,10,"."]
[null,null,null,null,null,null,null,null,null,null,null,null,null,null,null,null,null,null,null,null,null,null,null,null,null,null,null,null,null,null,null,null,null,11,"."]
[null,null,null,null,null,null,null,null,null,null,null,null,null,null,null,null,null,null,null,null,null,null,null,null,null,null,null,null,null,null,null,null,null,12,"."]
[null,null,null,null,null,null,null,null,null,null,null,null,null,null,null,null,null,null,null,null,null,null,null,null,null,null,null,null,null,null,null,null,null,13,"bagkropsspids eller sort med brystet hvidgrønt på sider"]
[]
[null,null,null,null,null,null,null,null,null,null,null,null,null,null,null,null,null,null,null,null,null,null,null,null,null,null,null,null,null,null,null,null,7,1,"lidt fortykkede. Vinger med mørkt bånd. Ikke alm.."]
[null,null,null,null,null,null,null,null,null,null,null,null,null,null,null,null,null,null,null,null,null,null,null,null,null,null,null,null,null,null,null,null,null,2,"."]
[null,null,null,null,null,null,null,null,null,null,null,null,null,null,null,null,null,null,null,null,null,null,null,null,null,null,null,null,null,null,null,null,null,3,"."]
[null,null,null,null,null,null,null,null,null,null,null,null,null,null,null,null,null,null,null,null,null,null,null,null,null,null,null,null,null,null,null,null,null,4,"Alle tre arter er sjældne, C. floccosa især."]
[null,null,null,null,null,null,null,null,null,null,null,null,null,null,null,null,null,null,null,null,null,null,null,null,null,null,null,null,null,null,null,null,null,5,"sia illustrata har ansigt og ben sorte."]
[null,null,null,null,null,null,null,null,null,null,null,null,null,null,null,null,null,null,null,null,null,null,null,null,null,null,null,null,null,null,null,null,null,6,"Ret almindelige."]
[null,null,null,null,null,null,null,null,null,null,null,null,null,null,null,null,null,null,null,null,null,null,null,null,null,null,null,null,null,null,null,null,null,7,"."]
[null,null,null,null,null,null,null,null,null,null,null,null,null,null,null,null,null,null,null,null,null,null,null,null,null,null,null,null,null,null,null,null,null,8,"."]
[null,null,null,null,null,null,null,null,null,null,null,null,null,null,null,null,null,null,null,null,null,null,null,null,null,null,null,null,null,null,null,null,null,9,"for hannens støjende svirren."]
[null,null,null,null,null,null,null,null,null,null,null,null,null,null,null,null,null,null,null,null,null,null,null,null,null,null,null,null,null,null,null,null,null,10,"."]
[null,null,null,null,null,null,null,null,null,null,null,null,null,null,null,null,null,null,null,null,null,null,null,null,null,null,null,null,null,null,null,null,null,11,"."]
[null,null,null,null,null,null,null,null,null,null,null,null,null,null,null,null,null,null,null,null,null,null,null,null,null,null,null,null,null,null,null,null,null,12,"."]
[null,null,null,null,null,null,null,null,null,null,null,null,null,null,null,null,null,null,null,null,null,null,null,null,null,null,null,null,null,null,null,null,null,13,"og bagtil, bagkrop gul inderst og hvidgrøn bagtil. Alm."]

{"sheet":"Ark1","index":1,"n_rows":0,"n_cols":0,"rows_kept":0,"cut":false,"hidden":false,"merged":[]}

{"sheet":"Ark2","index":2,"n_rows":23,"n_cols":13,"rows_kept":23,"cut":false,"hidden":false,"merged":[]}
[]
[]
[]
[]
[null,2,"Ark2!A5","Brachypalpus",null,null,2,"Ark2!F5",null,null,null,1,"Ark2!K5"]
[null,6,"Ark2!A6","Eristalinus",null,null,6,"Ark2!F6",null,null,null,2,"Ark2!K6"]
[null,11,"Ark2!A7","Myathropa",null,null,11,"Ark2!F7",null,null,null,3,"Ark2!K7"]
[null,9,"Ark2!A8","Merodon",null,null,9,"Ark2!F8",null,null,null,4,"Ark2!K8"]
[null,13,"Ark2!A9","Volucella",null,null,13,"Ark2!F9",null,null,null,5,"Ark2!K9"]
[null,12,"Ark2!A10","Pocota",null,null,12,"Ark2!F10",null,null,null,6,"Ark2!K10"]
[null,4,"Ark2!A11","Criorhina",null,null,4,"Ark2!F11",null,null,null,7,"Ark2!K11"]
[null,10,"Ark2!A12","Microdon",null,null,10,"Ark2!F12",null,null,null,8,"Ark2!K12"]
[null,5,"Ark2!A13","Eriozona",null,null,5,"Ark2!F13",null,null,null,9,"Ark2!K13"]
[null,3,"Ark2!A14","Cheilosia",null,null,3,"Ark2!F14",null,null,null,10,"Ark2!K14"]
[null,1,"Ark2!A15","Arctophila",null,null,1,"Ark2!F15",null,null,null,11,"Ark2!K15"]
[null,7,"Ark2!A16","Eristalis",null,null,7,"Ark2!F16",null,null,null,12,"Ark2!K16"]
[null,8,"Ark2!A17","Mallota",null,null,8,"Ark2!F17",null,null,null,13,"Ark2!K17"]
[null,null,null,null,null,null,null,null,null,null,null,14,"Ark2!K18"]
[null,null,null,null,null,null,null,null,null,null,null,15,"Ark2!K19"]
[null,null,null,null,null,null,null,null,null,null,null,16,"Ark2!K20"]
[null,null,null,null,null,null,null,null,null,null,null,17,"Ark2!K21"]
[null,null,null,null,null,null,null,null,null,null,null,18,"Ark2!K22"]
[null,null,null,null,null,null,null,null,null,null,null,19,"Ark2!K23"]

{"sheet":"Ark4","index":3,"n_rows":0,"n_cols":0,"rows_kept":0,"cut":false,"hidden":false,"merged":[]}

{"sheet":"Ark5","index":4,"n_rows":0,"n_cols":0,"rows_kept":0,"cut":false,"hidden":false,"merged":[]}

{"sheet":"Ark6","index":5,"n_rows":0,"n_cols":0,"rows_kept":0,"cut":false,"hidden":false,"merged":[]}